bitfinex/quotes_SOLUSD_20240702
["timestamp","ask_amount","ask_price","bid_price","bid_amount"]
[1719961347779,31.0054,155.1,155.04,14.74]
[1719961347955,33.364657,155.09,155.04,14.74]
[1719961348154,14.74,155.09,155.04,14.74]
[1719961348487,14.74,155.09,154.98,58.96]
[1719961348669,0.17,155.08,155.04,14.74]
[1719961349676,15.08,155.09,155.04,14.74]
[1719961350679,0.34,155.09,155.04,14.74]
[1719961351053,15.08,155.09,155.04,14.74]
[1719961356258,0.34,155.09,155.04,14.74]
[1719961356475,16.2654,155.1,155.04,14.74]
[1719961356760,31.0054,155.1,155.04,14.74]
[1719961356960,31.0054,155.1,155.05,14.74]
[1719961358302,0.34,155.09,155.04,14.74]
[1719961359287,31.0054,155.1,155.05,14.74]
[1719961361882,16.2654,155.1,155.05,14.74]
[1719961362060,31.0054,155.1,155.04,14.74]
[1719961363956,16.2654,155.1,155.04,14.74]
[1719961364160,31.0054,155.1,155.04,14.74]
[1719961364778,14.74,155.1,155.05,14.74]
[1719961364981,14.74,155.1,155.02,15.997]
[1719961364982,100.0,155.11,155.08,14.74]
[1719961368093,100.0,155.11,155.1,14.74]
[1719961369063,100.0,155.11,155.07,15.5743]
[1719961369381,100.0,155.11,155.1,14.74]
[1719961370682,100.0,155.11,155.04,15.37]
[1719961370992,100.0,155.11,155.05,20.17]
[1719961371288,100.0,155.11,155.1,14.74]
[1719961371883,100.0,155.11,155.09,14.74]
[1719961372869,100.0,155.11,155.05,20.17]
[1719961372870,100.0,155.11,155.1,14.74]
[1719961374986,100.0,155.11,155.05,20.0]
[1719961374987,100.0,155.11,155.04,15.37]
[1719961375210,100.0,155.11,155.07,14.74]
[1719961376082,114.74,155.11,155.06,14.74]
[1719961376979,14.74,155.09,155.0,15.7613]
[1719961377174,14.74,155.09,155.04,14.74]
[1719961377977,15.08,155.08,154.97,22.819]
[1719961378175,15.08,155.08,154.98,58.96]
[1719961378387,15.08,155.08,155.03,14.74]
[1719961379300,14.74,155.09,154.98,58.96]
[1719961379499,14.74,155.09,155.04,14.74]
[1719961380835,14.74,155.09,154.98,58.96]
[1719961380979,14.74,155.09,155.04,14.74]
[1719961381776,0.17,155.08,155.04,14.74]
[1719961382297,0.17,155.08,154.98,58.96]
[1719961382298,16.4312,155.1,155.05,16.02942849]
[1719961382477,31.1712,155.1,155.05,14.74]
[1719961382681,16.4312,155.1,155.05,14.74]
[1719961382895,31.1712,155.1,155.05,14.74]
[1719961383080,16.4312,155.1,155.05,14.74]
[1719961383274,0.17,155.09,155.05,14.74]
[1719961384389,16.2612,155.1,155.08,14.74]
[1719961384574,100.0,155.11,155.08,14.74]
[1719961388196,100.0,155.11,155.02,15.6409]
[1719961388394,100.0,155.11,155.07,14.74]
[1719961395209,100.0,155.11,155.06,14.74]
[1719961395415,114.74,155.11,155.06,14.74]
[1719961396122,114.74,155.11,154.99,15.3885]
[1719961396289,15.08,155.1,155.04,14.74]
[1719961396611,0.34,155.1,155.04,14.74]
[1719961396913,0.34,155.1,155.05,14.74]
[1719961397114,15.08,155.1,155.06,14.74]
[1719961398215,15.08,155.1,154.99,15.3885]
[1719961398390,0.34,155.1,155.06,14.74]
[1719961399088,15.08,155.1,155.05,14.74]
[1719961400091,0.34,155.1,155.05,14.74]
[1719961400309,15.08,155.1,155.05,14.74]
[1719961401920,15.08,155.1,155.05,7.24]
[1719961402101,15.08,155.1,155.05,14.74]
[1719961403808,16.5253,155.09,154.99,15.3885]
[1719961404008,16.5253,155.09,155.05,14.74]
[1719961404009,0.34,155.08,155.05,14.74]
[1719961404917,16.5253,155.09,155.05,14.74]
[1719961405101,16.5253,155.09,155.06,14.74]
[1719961406193,16.5253,155.09,155.05,14.74]
[1719961406802,0.17,155.08,154.99,15.3885]
[1719961407017,0.34,155.08,155.05,14.74]
[1719961409025,0.34,155.08,154.99,15.3885]
[1719961409322,0.34,155.08,155.05,14.74]
[1719961409704,16.5253,155.09,155.06,14.74]
[1719961416735,0.17,155.08,154.99,15.3885]
[1719961416906,0.34,155.08,155.06,14.74]
[1719961417304,0.17,155.08,154.99,15.3885]
[1719961417504,0.34,155.08,155.05,14.74]
[1719961418435,0.34,155.08,155.06,14.74]
[1719961421630,0.34,155.08,155.0,0.83705764]
[1719961421992,0.34,155.08,155.06,14.74]
[1719961422306,0.34,155.08,155.05,14.74]
[1719961422614,0.34,155.08,154.99,15.3885]
[1719961422615,0.34,155.08,155.06,14.74]
[1719961428242,6.5971,155.07,154.98,58.96]
[1719961428434,14.74,155.04,154.91,21.9037]
[1719961428938,23.66945401,155.06,154.98,14.74]
[1719961428939,15.08,155.03,154.98,14.74]
[1719961429111,15.08,155.03,154.91,21.9037]
[1719961429314,15.08,155.03,154.98,14.74]
[1719961429636,15.08,155.03,154.91,21.9037]
[1719961429835,15.08,155.03,154.98,14.74]
[1719961430219,0.34,155.03,154.92,20.0]
[1719961430421,23.32945401,155.06,155.02,14.74]
[1719961430620,23.32945401,155.06,155.03,14.74]
[1719961431321,23.32945401,155.06,155.05,14.74]
[1719961431322,16.5971,155.06,155.05,14.74]
[1719961432423,16.7671,155.06,155.05,14.74]
[1719961433945,0.17,155.06,155.05,14.74]
[1719961434316,6.72961919,155.09,155.05,14.74]
[1719961434628,6.72961919,155.09,154.98,58.96]
[1719961434629,0.34,155.08,155.06,14.74]
[1719961435233,106.5649,155.11,155.07,14.74]
[1719961435435,106.5649,155.11,155.09,14.74]
[1719961436717,106.5649,155.11,155.08,14.74]
[1719961437332,0.34,155.1,155.07,14.74]
[1719961437534,0.34,155.1,155.06,14.74]
[1719961437919,0.34,155.1,154.98,58.96]
[1719961438120,15.08,155.1,155.05,14.74]
[1719961438726,15.08,155.1,154.97,15.3528]
[1719961438727,14.74,155.08,154.97,15.3528]
[1719961438935,14.91,155.07,155.02,14.74]
[1719961439246,0.17,155.06,155.02,14.74]
[1719961440539,0.17,155.06,154.97,15.3528]
[1719961440844,14.91,155.06,155.01,14.74]
[1719961441028,0.17,155.05,155.01,14.74]
[1719961441231,0.17,155.05,155.03,14.74]
[1719961441942,0.17,155.05,154.98,14.74]
[1719961442245,0.17,155.05,155.04,14.74]
[1719961442833,0.17,155.06,155.04,14.74]
[1719961443031,15.5131,155.09,155.05,14.74]
[1719961443241,0.34,155.08,155.04,14.74]
[1719961443441,0.34,155.08,154.98,58.96]
[1719961443442,15.08,155.08,155.03,14.74]
[1719961443635,15.08,155.08,154.98,58.96]
[1719961443836,15.08,155.08,155.03,14.74]
[1719961444350,0.34,155.08,155.03,14.74]
[1719961444532,0.34,155.08,155.04,14.74]
[1719961445548,0.34,155.08,155.05,14.74]
[1719961445723,15.5131,155.09,155.05,14.74]
[1719961445923,113.29392575,155.11,155.08,14.74]
[1719961446652,113.29392575,155.11,155.07,14.74]
[1719961448049,113.29392575,155.11,154.98,6.6653]
[1719961448234,0.34,155.1,155.06,14.74]
[1719961450453,15.08,155.1,154.98,65.6253]
[1719961450641,15.08,155.1,154.99,20.0]
[1719961450843,21.47065941,155.09,155.04,14.74]
[1719961451046,0.34,155.08,155.04,14.74]
[1719961451548,0.34,155.08,154.98,65.6253]
[1719961451903,0.34,155.08,155.03,14.74]
[1719961451904,15.08,155.08,155.03,14.74]
[1719961452430,15.08,155.08,154.98,58.96]
[1719961452431,0.34,155.08,155.04,14.74]
[1719961454457,0.34,155.08,154.98,58.96]
[1719961454458,15.08,155.08,155.03,14.74]
[1719961455539,0.34,155.08,155.04,14.74]
[1719961455738,0.34,155.08,155.05,14.74]
[1719961455939,6.73065941,155.09,155.06,14.74]
[1719961456256,121.3049,155.11,155.06,14.74]
[1719961456548,128.03508394,155.11,155.06,14.74]
[1719961456757,113.29508394,155.11,155.06,14.74]
[1719961456939,128.03508394,155.11,155.06,14.74]
[1719961457353,0.34,155.1,155.06,14.74]
[1719961458041,15.08,155.1,155.05,14.74]
[1719961458253,15.08,155.1,155.04,14.74]
[1719961458554,15.08,155.1,155.05,14.74]
[1719961459543,15.08,155.1,155.05,14.24]
[1719961461455,15.08,155.1,154.98,58.96]
[1719961461644,15.08,155.1,154.99,20.0]
[1719961461853,15.08,155.1,155.05,14.74]
[1719961466789,6.73052423,155.09,155.05,14.74]
[1719961466943,0.34,155.08,155.05,14.74]
[1719961469469,0.34,155.08,155.04,14.74]
[1719961469676,0.34,155.08,154.98,58.96]
[1719961469851,31.5042,155.08,154.98,58.96]
[1719961470045,31.5042,155.08,155.03,14.74]
[1719961471864,31.5042,155.08,155.02,14.74]
[1719961472566,14.74,155.07,155.02,14.74]
[1719961472760,0.34,155.06,155.02,14.74]
[1719961473866,0.34,155.06,154.97,15.3528]
[1719961473867,15.08,155.06,155.01,14.74]
[1719961476961,6.73181463,155.05,155.01,14.74]
[1719961477255,0.34,155.04,155.01,14.74]
[1719961479172,0.34,155.04,154.94,6.5254]
[1719961479173,0.34,155.04,155.0,14.74]
[1719961480947,0.34,155.04,154.93,15.567]
[1719961480948,15.8184,155.03,154.93,15.567]
[1719961481166,15.08,155.02,154.97,14.74]
[1719961482876,15.08,155.02,154.89,81.0079]
[1719961482877,20.799,155.01,154.89,81.0079]
[1719961483068,15.08,155.0,154.95,14.74]
[1719961483266,0.34,155.0,154.95,14.74]
[1719961483447,0.34,155.0,154.96,14.74]
[1719961484476,0.34,155.0,154.89,81.0079]
[1719961484660,0.34,155.0,154.96,14.74]
[1719961484860,0.34,155.0,154.89,81.0079]
[1719961485068,0.34,155.0,154.95,14.74]
[1719961485913,15.08,155.0,154.89,81.0079]
[1719961486066,14.74,154.99,154.94,14.74]
[1719961486378,0.34,154.98,154.94,14.74]
[1719961487077,30.2002,154.98,154.93,14.74]
[1719961487287,6.72719306,154.97,154.93,14.74]
[1719961487577,6.72719306,154.97,154.94,14.74]
[1719961487578,0.34,154.96,154.94,14.74]
[1719961487770,0.34,154.96,154.89,15.5917]
[1719961488173,0.34,154.96,154.93,14.74]
[1719961488773,6.9332,154.96,154.89,14.74]
[1719961488978,6.9332,154.96,154.85,21.9156]
[1719961489278,6.9332,154.96,154.92,14.74]
[1719961490000,21.6732,154.96,154.85,21.9156]
[1719961490163,21.6732,154.96,154.91,14.74]
[1719961490364,50.4985,154.95,154.81,16.4973]
[1719961490587,14.74,154.92,154.81,16.4973]
[1719961490782,0.34,154.91,154.87,14.74]
[1719961491285,0.34,154.91,154.88,14.74]
[1719961491490,0.34,154.91,154.81,16.4973]
[1719961491786,0.34,154.9,154.88,14.74]
[1719961491960,0.34,154.92,154.89,14.74]
[1719961492357,0.17,154.92,154.89,14.74]
[1719961492584,0.34,154.93,154.89,14.74]
[1719961493774,6.72719306,154.97,154.92,14.74]
[1719961493984,6.72719306,154.97,154.89,58.96]
[1719961493985,23.2001,155.0,154.96,14.74]
[1719961494195,23.2001,155.0,154.98,14.74]
[1719961494488,29.92263259,155.0,154.98,14.74]
[1719961497466,0.34,154.99,154.98,14.74]
[1719961501591,0.34,154.99,154.98,14.24]
[1719961503370,0.17,154.99,154.98,14.24]
[1719961503975,6.72305352,155.03,154.98,14.24]
[1719961504335,0.17,155.02,155.01,14.74]
[1719961504471,6.72305352,155.03,155.01,14.74]
[1719961504673,6.72305352,155.03,155.02,14.74]
[1719961505187,21.7383,155.08,155.02,14.74]
[1719961505392,6.72098617,155.07,155.05,14.74]
[1719961505789,6.72098617,155.07,155.04,14.74]
[1719961506700,0.17,155.06,155.03,14.74]
[1719961508082,14.91,155.06,154.94,15.673]
[1719961508300,14.91,155.05,155.0,14.74]
[1719961508600,0.17,155.04,155.0,14.74]
[1719961508894,0.17,155.04,155.01,14.74]
[1719961509100,0.34,155.05,155.01,14.74]
[1719961509678,0.34,155.05,155.03,14.74]
[1719961509880,0.17,155.04,155.03,14.74]
[1719961511731,0.17,155.04,155.02,14.74]
[1719961511913,0.17,155.04,154.94,15.673]
[1719961512206,14.91,155.05,155.0,14.74]
[1719961512508,0.17,155.04,155.0,14.74]
[1719961513382,0.17,155.04,154.94,15.673]
[1719961513577,0.17,155.04,155.0,14.74]
[1719961513974,14.91,155.04,154.99,14.74]
[1719961514179,0.17,155.03,154.99,14.74]
[1719961514597,0.17,155.03,155.0,14.74]
[1719961514797,0.34,155.04,155.0,14.74]
[1719961515500,0.34,155.04,154.94,15.673]
[1719961515702,6.72096977,155.03,154.94,16.63649583]
[1719961515882,0.34,155.02,155.0,14.74]
[1719961519004,0.34,155.02,154.99,14.74]
[1719961519193,0.34,155.02,155.0,14.74]
[1719961519590,0.34,155.02,154.94,15.673]
[1719961519789,0.34,155.02,155.0,14.74]
[1719961520011,0.34,155.02,154.99,14.74]
[1719961521002,16.2801,155.02,154.97,14.74]
[1719961521248,31.0201,155.02,154.97,14.74]
[1719961525018,31.0201,155.02,154.96,14.74]
[1719961525019,14.74,155.01,154.96,14.74]
[1719961525185,0.34,155.0,154.96,14.74]
[1719961525805,0.34,154.99,154.96,14.74]
[1719961526004,6.72297064,155.0,154.96,14.74]
[1719961526204,0.34,154.99,154.96,14.74]
[1719961527012,0.34,154.99,154.9,16.0614]
[1719961527311,0.34,154.99,154.96,14.74]
[1719961529997,0.34,154.99,154.9,16.0614]
[1719961529998,0.34,154.99,154.95,14.74]
[1719961530197,0.34,154.99,154.9,16.0614]
[1719961530408,0.34,154.99,154.95,14.74]
[1719961532196,0.34,154.99,154.96,14.74]
[1719961532609,0.34,154.99,154.9,16.0614]
[1719961532803,0.34,154.99,154.95,14.74]
[1719961533324,21.46297064,155.0,154.98,14.74]
[1719961533325,6.72297064,155.0,154.98,14.74]
[1719961534511,14.74,155.04,154.99,14.74]
[1719961534713,6.72197467,155.02,154.99,14.74]
[1719961535810,0.17,155.01,154.99,14.74]
[1719961536166,0.34,155.01,154.99,14.74]
[1719961537321,0.34,155.01,154.9,16.0614]
[1719961537621,0.34,155.01,154.99,14.74]
[1719961537920,0.34,155.01,154.97,14.74]
[1719961540622,14.74,155.0,154.9,16.0614]
[1719961540793,0.34,154.99,154.95,14.74]
[1719961540995,15.08,154.99,154.94,14.74]
[1719961542014,0.34,154.99,154.95,14.74]
[1719961542623,0.34,154.99,154.9,16.0614]
[1719961542798,0.34,154.99,154.95,14.74]
[1719961542994,0.34,154.99,154.94,14.74]
[1719961542995,15.08,154.99,154.94,14.74]
[1719961543323,0.34,154.99,154.95,14.74]
[1719961543620,6.72197467,155.02,154.98,14.74]
[1719961543999,6.72197467,155.02,154.97,14.74]
[1719961545413,14.74,155.0,154.95,14.74]
[1719961545605,0.34,154.99,154.9,16.0614]
[1719961545789,0.34,154.99,154.95,14.74]
[1719961545995,6.72205152,154.98,154.95,14.74]
[1719961546209,0.34,154.97,154.95,14.74]
[1719961546495,0.34,154.97,154.9,16.0614]
[1719961546721,0.34,154.97,154.95,14.74]
[1719961549723,0.34,154.97,154.9,16.0614]
[1719961549914,0.34,154.97,154.95,14.74]
[1719961551231,0.34,154.97,154.9,16.0614]
[1719961551413,0.34,154.97,154.93,14.74]
[1719961553114,0.34,154.97,154.85,6.6194]
[1719961553115,15.08,154.97,154.85,6.6194]
[1719961553314,14.74,154.95,154.85,6.6194]
[1719961553630,0.34,154.94,154.9,14.74]
[1719961554925,0.34,154.94,154.91,14.74]
[1719961555532,0.34,154.94,154.92,14.74]
[1719961556429,0.34,154.94,154.85,6.6194]
[1719961556751,0.34,154.94,154.91,14.74]
[1719961558718,0.34,154.94,154.92,14.74]
[1719961559026,0.34,154.94,154.91,14.74]
[1719961564839,0.34,154.94,154.85,6.6194]
[1719961565037,0.34,154.94,154.91,14.74]
[1719961568336,22.4497,154.99,154.93,14.74]
[1719961568539,37.1897,154.99,154.94,14.74]
[1719961568743,6.72178159,154.97,154.95,14.74]
[1719961569244,6.72178159,154.97,154.94,14.74]
[1719961571237,0.17,154.96,154.94,14.74]
[1719961571435,0.34,154.96,154.94,14.74]
[1719961573746,0.34,154.96,154.85,6.6194]
[1719961573922,0.34,154.96,154.85,7.91068235]
[1719961574155,0.34,154.96,154.86,1.29123979]
[1719961574524,15.08,154.96,154.91,14.74]
[1719961574750,0.34,154.96,154.92,14.74]
[1719961575040,15.08,154.96,154.91,14.74]
[1719961577852,31.2823,154.93,154.87,14.74]
[1719961578148,0.34,154.92,154.87,14.74]
[1719961578533,0.34,154.92,154.88,14.74]
[1719961579048,6.72424154,154.91,154.88,14.74]
[1719961579353,0.34,154.9,154.88,14.74]
[1719961580844,0.34,154.9,154.84,15.5304]
[1719961581144,0.34,154.9,154.86,14.74]
[1719961581855,0.34,154.9,154.85,14.74]
[1719961582547,0.34,154.9,154.86,7.24]
[1719961583052,0.34,154.9,154.87,14.74]
[1719961583429,0.34,154.9,154.86,14.74]
[1719961584743,0.34,154.9,154.8,82.1347]
[1719961584945,15.08,154.9,154.85,14.74]
[1719961585145,6.648,154.89,154.85,14.74]
[1719961585357,14.74,154.87,154.76,16.3178]
[1719961585529,0.17,154.86,154.82,14.74]
[1719961585734,0.34,154.86,154.83,14.74]
[1719961586231,0.34,154.87,154.83,14.74]
[1719961586554,0.17,154.85,154.83,14.74]
[1719961586755,0.34,154.87,154.83,14.74]
[1719961589134,15.08,154.87,154.82,14.74]
[1719961589335,6.74367968,154.86,154.82,14.74]
[1719961589553,0.34,154.85,154.82,14.74]
[1719961590050,0.34,154.85,154.76,16.3178]
[1719961590256,0.34,154.85,154.83,14.74]
[1719961594356,0.34,154.85,154.76,16.3178]
[1719961594553,0.34,154.85,154.83,14.74]
[1719961594957,0.34,154.85,154.76,16.3178]
[1719961595163,0.34,154.85,154.81,14.74]
[1719961595838,15.08,154.85,154.8,14.74]
[1719961597659,15.08,154.85,154.71,58.96]
[1719961597660,14.74,154.84,154.79,14.74]
[1719961597837,0.34,154.83,154.79,14.74]
[1719961598835,6.4087,154.83,154.73,16.1793]
[1719961599040,21.1487,154.83,154.78,14.74]
[1719961599655,27.895348,154.83,154.78,14.74]
[1719961601158,27.895348,154.83,154.73,16.1793]
[1719961601336,27.895348,154.83,154.78,14.74]
[1719961603660,27.895348,154.83,154.73,16.1793]
[1719961603961,27.895348,154.83,154.78,14.74]
[1719961605156,13.155348,154.83,154.78,14.74]
[1719961605464,12.815348,154.83,154.8,14.74]
[1719961606562,21.7813,154.87,154.82,14.74]
[1719961606736,6.7444938,154.85,154.82,14.74]
[1719961607445,6.7444938,154.85,154.83,14.74]
[1719961608066,6.7444938,154.85,154.82,14.74]
[1719961608264,6.7444938,154.85,154.83,14.74]
[1719961608474,36.9666,154.91,154.84,14.74]
[1719961608652,6.73855097,154.88,154.85,14.74]
[1719961609045,36.9666,154.91,154.85,14.74]
[1719961609247,6.73704595,154.88,154.85,14.74]
[1719961609461,36.9666,154.91,154.85,14.74]
[1719961609657,6.73691227,154.88,154.8,58.96]
[1719961609855,6.73691227,154.88,154.87,14.74]
[1719961610059,36.0438,154.95,154.87,14.74]
[1719961610372,6.73508275,154.92,154.89,14.74]
[1719961610558,21.3038,154.95,154.89,14.74]
[1719961610753,6.73495115,154.92,154.89,14.74]
[1719961610961,36.0438,154.95,154.89,14.74]
[1719961611361,6.7349656,154.92,154.89,14.74]
[1719961611557,36.0438,154.95,154.89,14.74]
[1719961611876,6.73564949,154.92,154.89,14.74]
[1719961612177,36.0438,154.95,154.9,14.74]
[1719961612351,6.73558368,154.92,154.9,14.74]
[1719961612552,6.73558368,154.92,154.83,6.5247]
[1719961612753,14.74,154.94,154.89,14.74]
[1719961612977,6.73589084,154.92,154.89,14.74]
[1719961613359,0.17,154.91,154.89,14.74]
[1719961613574,0.17,154.91,154.88,14.74]
[1719961613884,0.34,154.91,154.9,14.74]
[1719961614063,0.34,154.91,154.83,6.5247]
[1719961614259,0.34,154.91,154.9,14.74]
[1719961616264,6.73589084,154.92,154.9,14.74]
[1719961616452,6.73589084,154.92,154.91,14.74]
[1719961616663,7.07589084,154.92,154.91,14.74]
[1719961619491,6.73589084,154.92,154.91,14.74]
[1719961619778,21.7705,155.0,154.91,14.74]
[1719961619993,6.73629353,154.97,154.94,14.74]
[1719961620286,14.74,154.97,154.92,14.74]
[1719961620468,6.73693216,154.96,154.92,14.74]
[1719961621167,0.34,154.95,154.92,14.74]
[1719961621387,0.34,154.95,154.94,14.74]
[1719961622061,0.17,154.95,154.94,14.74]
[1719961623267,0.34,154.95,154.94,14.74]
[1719961625488,0.34,154.95,154.86,16.0134]
[1719961625788,0.34,154.95,154.93,14.74]
[1719961626988,0.34,154.95,154.86,16.0134]
[1719961627486,0.34,154.95,154.91,14.74]
[1719961628767,0.34,154.95,154.92,14.74]
[1719961630066,0.34,154.95,154.93,14.74]
[1719961631188,0.17,154.95,154.94,14.74]
[1719961631868,0.17,154.95,154.86,16.0134]
[1719961632071,0.17,154.95,154.94,14.74]
[1719961632269,0.34,154.95,154.94,14.74]
[1719961635790,0.34,154.95,154.88,6.4111]
[1719961636028,0.34,154.95,154.92,14.74]
[1719961636290,0.34,154.95,154.89,20.0]
[1719961636493,0.34,154.95,154.92,14.74]
[1719961640984,0.34,154.95,154.93,14.74]
[1719961641483,0.34,154.95,154.94,14.74]
[1719961641979,0.17,154.95,154.94,14.74]
[1719961642171,6.73612447,154.98,154.94,14.74]
[1719961642373,0.34,154.97,154.95,14.74]
[1719961644477,0.34,154.97,154.9,1.2891596]
[1719961644478,0.34,154.97,154.96,14.74]
[1719961646592,0.17,154.97,154.96,14.74]
[1719961646964,0.17,154.97,154.95,14.74]
[1719961648281,0.17,154.98,154.96,14.74]
[1719961648485,0.34,154.99,154.97,14.74]
[1719961649892,0.34,154.99,154.96,14.74]
[1719961652195,0.34,154.99,154.91,16.2799]
[1719961652400,0.34,154.99,154.95,14.74]
[1719961652789,15.08,154.99,154.94,14.74]
[1719961652987,0.34,154.99,154.95,14.74]
[1719961653497,15.08,154.99,154.94,14.74]
[1719961654829,15.08,154.99,154.91,16.2799]
[1719961654997,14.74,154.98,154.88,6.4111]
[1719961655314,15.08,154.97,154.92,14.74]
[1719961660530,15.08,154.97,154.88,6.4111]
[1719961660704,15.08,154.97,154.92,14.74]
[1719961662115,14.74,154.96,154.91,14.74]
[1719961662423,0.34,154.95,154.91,14.74]
[1719961663126,0.34,154.95,154.87,15.1094]
[1719961663331,0.34,154.95,154.91,14.74]
[1719961663624,0.34,154.95,154.87,15.1094]
[1719961663798,0.34,154.95,154.91,14.74]
[1719961670835,21.8062,154.99,154.87,15.1094]
[1719961670836,21.8062,154.99,154.94,14.74]
[1719961671009,15.4835,154.99,154.96,14.74]
[1719961672118,15.4835,154.99,154.95,14.74]
[1719961672914,0.34,154.98,154.95,14.74]
[1719961676646,0.34,154.98,154.96,14.74]
[1719961677837,0.34,154.98,154.97,14.74]
[1719961683436,0.34,154.98,154.96,14.74]
[1719961683645,0.34,154.99,154.96,14.74]
[1719961684543,0.34,154.99,154.89,64.9674]
[1719961684745,0.34,154.99,154.95,14.74]
[1719961684951,0.34,154.99,154.96,14.74]
[1719961685138,0.34,154.99,154.95,14.74]
[1719961686078,0.34,154.99,154.96,14.74]
[1719961687159,0.34,154.99,154.89,64.9674]
[1719961687347,0.34,154.99,154.95,14.74]
[1719961688053,15.08,154.99,154.94,14.74]
[1719961688458,0.34,154.99,154.95,14.74]
[1719961690136,0.34,154.99,154.96,14.74]
[1719961690940,6.7364253,155.0,154.92,16.347]
[1719961691147,21.2766,155.03,154.98,14.74]
[1719961691356,13.26902689,155.03,154.99,14.74]
[1719961692333,0.34,155.02,154.99,14.74]
[1719961692861,0.34,155.02,154.98,14.74]
[1719961695264,0.34,155.02,154.99,14.74]
[1719961696545,6.2349,155.07,155.01,14.74]
[1719961696744,20.9749,155.07,155.02,14.74]
[1719961696945,6.73286549,155.06,155.02,14.74]
[1719961697256,6.73286549,155.06,155.03,14.74]
[1719961697458,6.73286549,155.06,154.98,30.3254]
[1719961697757,6.73286549,155.06,155.02,14.74]
[1719961698455,0.34,155.05,155.01,14.74]
[1719961699256,0.34,155.05,154.95,6.0975]
[1719961699460,15.08,155.05,155.0,14.74]
[1719961700261,0.34,155.05,155.01,14.74]
[1719961702067,6.73286549,155.06,155.02,14.74]
[1719961702644,6.73286549,155.06,154.98,14.74]
[1719961702849,363.3492,155.11,155.04,14.74]
[1719961703051,21.47104577,155.1,155.05,14.74]
[1719961703578,21.47104577,155.1,155.04,14.74]
[1719961703759,6.73104577,155.1,155.0,16.1397]
[1719961703969,14.74,155.08,155.03,14.74]
[1719961704265,0.17,155.07,155.03,14.74]
[1719961704565,0.34,155.07,155.04,14.74]
[1719961704767,0.17,155.06,155.04,14.74]